{"text_format":"3","workbook":"xlsx","n_sheets":1,"sheets":["Mjesečni obiteljski proračun"],"read":"whole","date_system":"1900"}

{"sheet":"Mjesečni obiteljski proračun","index":0,"n_rows":67,"n_cols":10,"rows_kept":67}
[null,"Mjesečni obiteljski proračun"]
[null,"Tablica Sažetak","Ukupno\nPredviđeni troškovi","Ukupno\nStvarni troškovi","Ukupno\nRazlika",null,"Predviđeni izvor mjesečnih prihoda","Iznos"]
[null,null,{"$f":"Režije[[#Totals],[Predviđeni\ntroškovi]]+Prijevoz[[#Totals],[Predviđeni\ntroškovi]]+Osiguranje[[#Totals],[Predviđeni\ntroškovi]]+Hrana[[#Totals],[Predviđeni\ntroškovi]]+Djeca[[#Totals],[Predviđeni\ntroškovi]]+Pravni_troškovi[[#Totals],[Predviđeni\ntroškovi]]+Štednja[[#Totals],[Predviđeni\ntroškovi]]+Krediti[[#Totals],[Predviđeni\ntroškovi]]+Zabava[[#Totals],[Predviđeni\ntroškovi]]+Porezi[[#Totals],[Predviđeni \ntroškovi]]+OsobnaNjega[[#Totals],[Predviđeni\ntroškovi]]+Kućni_ljubimci[[#Totals],[Predviđeni\ntroškovi]]+Darovi[[#Totals],[Predviđeni\ntroškovi]]","v":{"v":1203,"d":"1,203 kn"}},{"$f":"Režije[[#Totals],[Stvarni\ntroškovi]]+Prijevoz[[#Totals],[Stvarni\ntroškovi]]+Osiguranje[[#Totals],[Stvarni\ntroškovi]]+Hrana[[#Totals],[Stvarni\ntroškovi]]+Djeca[[#Totals],[Stvarni\ntroškovi]]+Pravni_troškovi[[#Totals],[Stvarni\ntroškovi]]+Štednja[[#Totals],[Stvarni\ntroškovi]]+Krediti[[#Totals],[Stvarni\ntroškovi]]+Zabava[[#Totals],[Stvarni\ntroškovi]]+Porezi[[#Totals],[Stvarni \ntroškovi]]+OsobnaNjega[[#Totals],[Stvarni\ntroškovi]]+Kućni_ljubimci[[#Totals],[Stvarni\ntroškovi]]+Darovi[[#Totals],[Stvarni\ntroškovi]]","v":{"v":1317,"d":"1,317 kn"}},{"$f":"Režije[[#Totals],[Razlika]]+Prijevoz[[#Totals],[Razlika]]+Osiguranje[[#Totals],[Razlika]]+Hrana[[#Totals],[Razlika]]+Djeca[[#Totals],[Razlika]]+Pravni_troškovi[[#Totals],[Razlika]]+Štednja[[#Totals],[Razlika]]+Krediti[[#Totals],[Razlika]]+Zabava[[#Totals],[Razlika]]+Porezi[[#Totals],[Razlika]]+OsobnaNjega[[#Totals],[Razlika]]+Kućni_ljubimci[[#Totals],[Razlika]]+Darovi[[#Totals],[Razlika]]","v":{"v":-114,"d":"-114 kn"}},null,"Prihod 1",{"v":4000,"d":"4,000 kn"}]
[{"$nulls":6},"Prihod 2",{"v":1200,"d":"1,200 kn"}]
[null,"Režije","Predviđeni\ntroškovi","Stvarni\ntroškovi","Razlika",null,"Dodatni prihodi",{"v":300,"d":"300 kn"}]
[null,"Hipoteka ili najamnina",{"v":1000,"d":"1,000 kn"},{"v":1000,"d":"1,000 kn"},{"$f":"Režije[Predviđeni\ntroškovi]-Režije[Stvarni\ntroškovi]","v":{"v":0,"d":"0 kn"}},null,"Ukupni mjesečni prihodi",{"$f":"SUM(H3:H5)","v":{"v":5500,"d":"5,500 kn"}}]
[null,"Druga hipoteka ili najamnina",{"v":0,"d":"0 kn"},{"v":0,"d":"0 kn"},{"$f":"Režije[Predviđeni\ntroškovi]-Režije[Stvarni\ntroškovi]","v":{"v":0,"d":"0 kn"}}]
[null,"Telefon",{"v":62,"d":"62 kn"},{"v":100,"d":"100 kn"},{"$f":"Režije[Predviđeni\ntroškovi]-Režije[Stvarni\ntroškovi]","v":{"v":-38,"d":"38 kn"}},null,"Stvarni izvor mjesečnih prihoda","Iznos"]
[null,"Struja",{"v":44,"d":"44 kn"},{"v":125,"d":"125 kn"},{"$f":"Režije[Predviđeni\ntroškovi]-Režije[Stvarni\ntroškovi]","v":{"v":-81,"d":"81 kn"}},null,"Prihod 1",{"v":4000,"d":"4,000 kn"}]
[null,"Plin",{"v":22,"d":"22 kn"},{"v":35,"d":"35 kn"},{"$f":"Režije[Predviđeni\ntroškovi]-Režije[Stvarni\ntroškovi]","v":{"v":-13,"d":"13 kn"}},null,"Prihod 2",{"v":1200,"d":"1,200 kn"}]
[null,"Voda i komunalna naknada",{"v":8,"d":"8 kn"},{"v":8,"d":"8 kn"},{"$f":"Režije[Predviđeni\ntroškovi]-Režije[Stvarni\ntroškovi]","v":{"v":0,"d":"0 kn"}},null,"Dodatni prihodi",{"v":300,"d":"300 kn"}]
[null,"Kabelska TV",{"v":34,"d":"34 kn"},{"v":39,"d":"39 kn"},{"$f":"Režije[Predviđeni\ntroškovi]-Režije[Stvarni\ntroškovi]","v":{"v":-5,"d":"5 kn"}},null,"Ukupni mjesečni prihodi",{"$f":"SUM(H9:H11)","v":{"v":5500,"d":"5,500 kn"}}]
[null,"Odvoz smeća",{"v":10,"d":"10 kn"},{"v":10,"d":"10 kn"},{"$f":"Režije[Predviđeni\ntroškovi]-Režije[Stvarni\ntroškovi]","v":{"v":0,"d":"0 kn"}}]
[null,"Održavanja i popravci",{"v":23,"d":"23 kn"},{"v":0,"d":"0 kn"},{"$f":"Režije[Predviđeni\ntroškovi]-Režije[Stvarni\ntroškovi]","v":{"v":23,"d":"23 kn"}},null,"Saldo","Iznos"]
[null,"Potrepštine",{"v":0,"d":"0 kn"},{"v":0,"d":"0 kn"},{"$f":"Režije[Predviđeni\ntroškovi]-Režije[Stvarni\ntroškovi]","v":{"v":0,"d":"0 kn"}},null,"Predviđeni proračun",{"$f":"SUM(H6-'Mjesečni obiteljski proračun'!$C$3:$C$3)","v":{"v":4297,"d":"4,297 kn"}}]
[null,"Ostalo",{"v":0,"d":"0 kn"},{"v":0,"d":"0 kn"},{"$f":"Režije[Predviđeni\ntroškovi]-Režije[Stvarni\ntroškovi]","v":{"v":0,"d":"0 kn"}},null,"Stvarni proračun",{"$f":"SUM(H12-D3)","v":{"v":4183,"d":"4,183 kn"}}]
[null,"Ukupno",{"$f":"SUBTOTAL(109,Režije[Predviđeni\ntroškovi])","v":{"v":1203,"d":"1,203 kn"}},{"$f":"SUBTOTAL(109,Režije[Stvarni\ntroškovi])","v":{"v":1317,"d":"1,317 kn"}},{"$f":"SUBTOTAL(109,Režije[Razlika])","v":{"v":-114,"d":"-114 kn"}},null,"Razlika",{"$f":"SUM(H16-H15)","v":{"v":-114,"d":"-114 kn"}}]
[]
[null,"Prijevoz","Predviđeni\ntroškovi","Stvarni\ntroškovi","Razlika",null,"Krediti","Predviđeni\ntroškovi","Stvarni\ntroškovi","Razlika"]
[null,"Rata za vozilo 1",null,null,{"$f":"Prijevoz[Predviđeni\ntroškovi]-Prijevoz[Stvarni\ntroškovi]","v":{"v":0,"d":"0 kn"}},null,"Osobni kredit",null,null,{"$f":"Krediti[Predviđeni\ntroškovi]-Krediti[Stvarni\ntroškovi]","v":{"v":0,"d":"0 kn"}}]
[null,"Rata za vozilo 2",null,null,{"$f":"Prijevoz[Predviđeni\ntroškovi]-Prijevoz[Stvarni\ntroškovi]","v":{"v":0,"d":"0 kn"}},null,"Studentski kredit",null,null,{"$f":"Krediti[Predviđeni\ntroškovi]-Krediti[Stvarni\ntroškovi]","v":{"v":0,"d":"0 kn"}}]
[null,"Autobus/taksi",null,null,{"$f":"Prijevoz[Predviđeni\ntroškovi]-Prijevoz[Stvarni\ntroškovi]","v":{"v":0,"d":"0 kn"}},null,"Kreditna kartica",null,null,{"$f":"Krediti[Predviđeni\ntroškovi]-Krediti[Stvarni\ntroškovi]","v":{"v":0,"d":"0 kn"}}]
[null,"Osiguranje",null,null,{"$f":"Prijevoz[Predviđeni\ntroškovi]-Prijevoz[Stvarni\ntroškovi]","v":{"v":0,"d":"0 kn"}},null,"Kreditna kartica",null,null,{"$f":"Krediti[Predviđeni\ntroškovi]-Krediti[Stvarni\ntroškovi]","v":{"v":0,"d":"0 kn"}}]
[null,"Registracija",null,null,{"$f":"Prijevoz[Predviđeni\ntroškovi]-Prijevoz[Stvarni\ntroškovi]","v":{"v":0,"d":"0 kn"}},null,"Kreditna kartica",null,null,{"$f":"Krediti[Predviđeni\ntroškovi]-Krediti[Stvarni\ntroškovi]","v":{"v":0,"d":"0 kn"}}]
[null,"Gorivo",null,null,{"$f":"Prijevoz[Predviđeni\ntroškovi]-Prijevoz[Stvarni\ntroškovi]","v":{"v":0,"d":"0 kn"}},null,"Ostalo",null,null,{"$f":"Krediti[Predviđeni\ntroškovi]-Krediti[Stvarni\ntroškovi]","v":{"v":0,"d":"0 kn"}}]
[null,"Održavanje",null,null,{"$f":"Prijevoz[Predviđeni\ntroškovi]-Prijevoz[Stvarni\ntroškovi]","v":{"v":0,"d":"0 kn"}},null,"Ukupno",{"$f":"SUBTOTAL(109,Krediti[Predviđeni\ntroškovi])","v":{"v":0,"d":"0 kn"}},{"$f":"SUBTOTAL(109,Krediti[Stvarni\ntroškovi])","v":{"v":0,"d":"0 kn"}},{"$f":"SUBTOTAL(109,Krediti[Razlika])","v":{"v":0,"d":"0 kn"}}]
[null,"Ostalo",null,null,{"$f":"Prijevoz[Predviđeni\ntroškovi]-Prijevoz[Stvarni\ntroškovi]","v":{"v":0,"d":"0 kn"}}]
[null,"Ukupno",{"$f":"SUBTOTAL(109,Prijevoz[Predviđeni\ntroškovi])","v":{"v":0,"d":"0 kn"}},{"$f":"SUBTOTAL(109,Prijevoz[Stvarni\ntroškovi])","v":{"v":0,"d":"0 kn"}},{"$f":"SUBTOTAL(109,Prijevoz[Razlika])","v":{"v":0,"d":"0 kn"}},null,"Zabava","Predviđeni\ntroškovi","Stvarni\ntroškovi","Razlika"]
[{"$nulls":6},"Video/DVD",null,null,{"$f":"Zabava[Predviđeni\ntroškovi]-Zabava[Stvarni\ntroškovi]","v":{"v":0,"d":"0 kn"}}]
[null,"Osiguranje","Predviđeni\ntroškovi","Stvarni\ntroškovi","Razlika",null,"CD-ovi",null,null,{"$f":"Zabava[Predviđeni\ntroškovi]-Zabava[Stvarni\ntroškovi]","v":{"v":0,"d":"0 kn"}}]
[null,"Osiguranje nekretnine",null,null,{"$f":"Osiguranje[Predviđeni\ntroškovi]-Osiguranje[Stvarni\ntroškovi]","v":{"v":0,"d":"0 kn"}},null,"Filmovi",null,null,{"$f":"Zabava[Predviđeni\ntroškovi]-Zabava[Stvarni\ntroškovi]","v":{"v":0,"d":"0 kn"}}]
[null,"Zdravstveno osiguranje",null,null,{"$f":"Osiguranje[Predviđeni\ntroškovi]-Osiguranje[Stvarni\ntroškovi]","v":{"v":0,"d":"0 kn"}},null,"Koncerti",null,null,{"$f":"Zabava[Predviđeni\ntroškovi]-Zabava[Stvarni\ntroškovi]","v":{"v":0,"d":"0 kn"}}]
[null,"Životno osiguranje",null,null,{"$f":"Osiguranje[Predviđeni\ntroškovi]-Osiguranje[Stvarni\ntroškovi]","v":{"v":0,"d":"0 kn"}},null,"Sportska događanja",null,null,{"$f":"Zabava[Predviđeni\ntroškovi]-Zabava[Stvarni\ntroškovi]","v":{"v":0,"d":"0 kn"}}]
[null,"Ostalo",null,null,{"$f":"Osiguranje[Predviđeni\ntroškovi]-Osiguranje[Stvarni\ntroškovi]","v":{"v":0,"d":"0 kn"}},null,"Kazalište",null,null,{"$f":"Zabava[Predviđeni\ntroškovi]-Zabava[Stvarni\ntroškovi]","v":{"v":0,"d":"0 kn"}}]
[null,"Ukupno",{"$f":"SUBTOTAL(109,Osiguranje[Predviđeni\ntroškovi])","v":{"v":0,"d":"0 kn"}},{"$f":"SUBTOTAL(109,Osiguranje[Stvarni\ntroškovi])","v":{"v":0,"d":"0 kn"}},{"$f":"SUBTOTAL(109,Osiguranje[Razlika])","v":{"v":0,"d":"0 kn"}},null,"Ostalo",null,null,{"$f":"Zabava[Predviđeni\ntroškovi]-Zabava[Stvarni\ntroškovi]","v":{"v":0,"d":"0 kn"}}]
[{"$nulls":6},"Ukupno",{"$f":"SUBTOTAL(109,Zabava[Predviđeni\ntroškovi])","v":{"v":0,"d":"0 kn"}},{"$f":"SUBTOTAL(109,Zabava[Stvarni\ntroškovi])","v":{"v":0,"d":"0 kn"}},{"$f":"SUBTOTAL(109,Zabava[Razlika])","v":{"v":0,"d":"0 kn"}}]
[null,"Hrana","Predviđeni\ntroškovi","Stvarni\ntroškovi","Razlika"]
[null,"Namirnice",null,null,{"$f":"Hrana[Predviđeni\ntroškovi]-Hrana[Stvarni\ntroškovi]","v":{"v":0,"d":"0 kn"}},null,"Porezi","Predviđeni \ntroškovi","Stvarni \ntroškovi","Razlika"]
[null,"Restorani",null,null,{"$f":"Hrana[Predviđeni\ntroškovi]-Hrana[Stvarni\ntroškovi]","v":{"v":0,"d":"0 kn"}},null,"Savezni",null,null,{"$f":"Porezi[Predviđeni \ntroškovi]-Porezi[Stvarni \ntroškovi]","v":{"v":0,"d":"0 kn"}}]
[null,"Ostalo",null,null,{"$f":"Hrana[Predviđeni\ntroškovi]-Hrana[Stvarni\ntroškovi]","v":{"v":0,"d":"0 kn"}},null,"Državni",null,null,{"$f":"Porezi[Predviđeni \ntroškovi]-Porezi[Stvarni \ntroškovi]","v":{"v":0,"d":"0 kn"}}]
[null,"Ukupno",{"$f":"SUBTOTAL(109,Hrana[Predviđeni\ntroškovi])","v":{"v":0,"d":"0 kn"}},{"$f":"SUBTOTAL(109,Hrana[Stvarni\ntroškovi])","v":{"v":0,"d":"0 kn"}},{"$f":"SUBTOTAL(109,Hrana[Razlika])","v":{"v":0,"d":"0 kn"}},null,"Lokalni",null,null,{"$f":"Porezi[Predviđeni \ntroškovi]-Porezi[Stvarni \ntroškovi]","v":{"v":0,"d":"0 kn"}}]
[{"$nulls":6},"Ostalo",null,null,{"$f":"Porezi[Predviđeni \ntroškovi]-Porezi[Stvarni \ntroškovi]","v":{"v":0,"d":"0 kn"}}]
[null,"Djeca","Predviđeni\ntroškovi","Stvarni\ntroškovi","Razlika",null,"Ukupno",{"$f":"SUBTOTAL(109,Porezi[Predviđeni \ntroškovi])","v":{"v":0,"d":"0 kn"}},{"$f":"SUBTOTAL(109,Porezi[Stvarni \ntroškovi])","v":{"v":0,"d":"0 kn"}},{"$f":"SUBTOTAL(109,Porezi[Razlika])","v":{"v":0,"d":"0 kn"}}]
[null,"Liječnički troškovi",null,null,{"$f":"Djeca[Predviđeni\ntroškovi]-Djeca[Stvarni\ntroškovi]","v":{"v":0,"d":"0 kn"}}]
[null,"Odjeća",null,null,{"$f":"Djeca[Predviđeni\ntroškovi]-Djeca[Stvarni\ntroškovi]","v":{"v":0,"d":"0 kn"}},null,"Osobna njega","Predviđeni\ntroškovi","Stvarni\ntroškovi","Razlika"]
[null,"Školarina",null,null,{"$f":"Djeca[Predviđeni\ntroškovi]-Djeca[Stvarni\ntroškovi]","v":{"v":0,"d":"0 kn"}},null,"Liječnički troškovi",null,null,{"$f":"OsobnaNjega[Predviđeni\ntroškovi]-OsobnaNjega[Stvarni\ntroškovi]","v":{"v":0,"d":"0 kn"}}]
[null,"Školski pribor",null,null,{"$f":"Djeca[Predviđeni\ntroškovi]-Djeca[Stvarni\ntroškovi]","v":{"v":0,"d":"0 kn"}},null,"Frizura/manikura",null,null,{"$f":"OsobnaNjega[Predviđeni\ntroškovi]-OsobnaNjega[Stvarni\ntroškovi]","v":{"v":0,"d":"0 kn"}}]
[null,"Članarine ili naknade",null,null,{"$f":"Djeca[Predviđeni\ntroškovi]-Djeca[Stvarni\ntroškovi]","v":{"v":0,"d":"0 kn"}},null,"Odjeća",null,null,{"$f":"OsobnaNjega[Predviđeni\ntroškovi]-OsobnaNjega[Stvarni\ntroškovi]","v":{"v":0,"d":"0 kn"}}]
[null,"Novac za užinu",null,null,{"$f":"Djeca[Predviđeni\ntroškovi]-Djeca[Stvarni\ntroškovi]","v":{"v":0,"d":"0 kn"}},null,"Čišćenje odjeće",null,null,{"$f":"OsobnaNjega[Predviđeni\ntroškovi]-OsobnaNjega[Stvarni\ntroškovi]","v":{"v":0,"d":"0 kn"}}]
[null,"Vrtić",null,null,{"$f":"Djeca[Predviđeni\ntroškovi]-Djeca[Stvarni\ntroškovi]","v":{"v":0,"d":"0 kn"}},null,"Teretana",null,null,{"$f":"OsobnaNjega[Predviđeni\ntroškovi]-OsobnaNjega[Stvarni\ntroškovi]","v":{"v":0,"d":"0 kn"}}]
[null,"Igračke/igre",null,null,{"$f":"Djeca[Predviđeni\ntroškovi]-Djeca[Stvarni\ntroškovi]","v":{"v":0,"d":"0 kn"}},null,"Članarine/naknade",null,null,{"$f":"OsobnaNjega[Predviđeni\ntroškovi]-OsobnaNjega[Stvarni\ntroškovi]","v":{"v":0,"d":"0 kn"}}]
[null,"Ostalo",null,null,{"$f":"Djeca[Predviđeni\ntroškovi]-Djeca[Stvarni\ntroškovi]","v":{"v":0,"d":"0 kn"}},null,"Ostalo",null,null,{"$f":"OsobnaNjega[Predviđeni\ntroškovi]-OsobnaNjega[Stvarni\ntroškovi]","v":{"v":0,"d":"0 kn"}}]
[null,"Ukupno",{"$f":"SUBTOTAL(109,Djeca[Predviđeni\ntroškovi])","v":{"v":0,"d":"0 kn"}},{"$f":"SUBTOTAL(109,Djeca[Stvarni\ntroškovi])","v":{"v":0,"d":"0 kn"}},{"$f":"SUBTOTAL(109,Djeca[Razlika])","v":{"v":0,"d":"0 kn"}},null,"Ukupno",{"$f":"SUBTOTAL(109,OsobnaNjega[Predviđeni\ntroškovi])","v":{"v":0,"d":"0 kn"}},{"$f":"SUBTOTAL(109,OsobnaNjega[Stvarni\ntroškovi])","v":{"v":0,"d":"0 kn"}},{"$f":"SUBTOTAL(109,OsobnaNjega[Razlika])","v":{"v":0,"d":"0 kn"}}]
[]
[null,"Pravni_troškovi","Predviđeni\ntroškovi","Stvarni\ntroškovi","Razlika",null,"Kućni_ljubimci","Predviđeni\ntroškovi","Stvarni\ntroškovi","Razlika"]
[null,"Odvjetnik",null,null,{"$f":"Pravni_troškovi[Predviđeni\ntroškovi]-Pravni_troškovi[Stvarni\ntroškovi]","v":{"v":0,"d":"0 kn"}},null,"Hrana",null,null,{"$f":"Kućni_ljubimci[Predviđeni\ntroškovi]-Kućni_ljubimci[Stvarni\ntroškovi]","v":{"v":0,"d":"0 kn"}}]
[null,"Alimentacija",null,null,{"$f":"Pravni_troškovi[Predviđeni\ntroškovi]-Pravni_troškovi[Stvarni\ntroškovi]","v":{"v":0,"d":"0 kn"}},null,"Liječnički troškovi",null,null,{"$f":"Kućni_ljubimci[Predviđeni\ntroškovi]-Kućni_ljubimci[Stvarni\ntroškovi]","v":{"v":0,"d":"0 kn"}}]
[null,"Rate",null,null,{"$f":"Pravni_troškovi[Predviđeni\ntroškovi]-Pravni_troškovi[Stvarni\ntroškovi]","v":{"v":0,"d":"0 kn"}},null,"Njega ljubimaca",null,null,{"$f":"Kućni_ljubimci[Predviđeni\ntroškovi]-Kućni_ljubimci[Stvarni\ntroškovi]","v":{"v":0,"d":"0 kn"}}]
[null,"Ostalo",null,null,{"$f":"Pravni_troškovi[Predviđeni\ntroškovi]-Pravni_troškovi[Stvarni\ntroškovi]","v":{"v":0,"d":"0 kn"}},null,"Igračke",null,null,{"$f":"Kućni_ljubimci[Predviđeni\ntroškovi]-Kućni_ljubimci[Stvarni\ntroškovi]","v":{"v":0,"d":"0 kn"}}]
[null,"Ukupno",{"$f":"SUBTOTAL(109,Pravni_troškovi[Predviđeni\ntroškovi])","v":{"v":0,"d":"0 kn"}},{"$f":"SUBTOTAL(109,Pravni_troškovi[Stvarni\ntroškovi])","v":{"v":0,"d":"0 kn"}},{"$f":"SUBTOTAL(109,Pravni_troškovi[Razlika])","v":{"v":0,"d":"0 kn"}},null,"Ostalo",null,null,{"$f":"Kućni_ljubimci[Predviđeni\ntroškovi]-Kućni_ljubimci[Stvarni\ntroškovi]","v":{"v":0,"d":"0 kn"}}]
[{"$nulls":6},"Ukupno",{"$f":"SUBTOTAL(109,Kućni_ljubimci[Predviđeni\ntroškovi])","v":{"v":0,"d":"0 kn"}},{"$f":"SUBTOTAL(109,Kućni_ljubimci[Stvarni\ntroškovi])","v":{"v":0,"d":"0 kn"}},{"$f":"SUBTOTAL(109,Kućni_ljubimci[Razlika])","v":{"v":0,"d":"0 kn"}}]
[null,"Štednja/ulaganje","Predviđeni\ntroškovi","Stvarni\ntroškovi","Razlika"]
[null,"Mirovinska štednja",null,null,{"$f":"Štednja[Predviđeni\ntroškovi]-Štednja[Stvarni\ntroškovi]","v":{"v":0,"d":"0 kn"}},null,"Darovi i donacije","Predviđeni\ntroškovi","Stvarni\ntroškovi","Razlika"]
[null,"Investicijski račun",null,null,{"$f":"Štednja[Predviđeni\ntroškovi]-Štednja[Stvarni\ntroškovi]","v":{"v":0,"d":"0 kn"}},null,"Dobrotvorna udruga 1",null,null,{"$f":"Darovi[Predviđeni\ntroškovi]-Darovi[Stvarni\ntroškovi]","v":{"v":0,"d":"0 kn"}}]
[null,"Fakultet",null,null,{"$f":"Štednja[Predviđeni\ntroškovi]-Štednja[Stvarni\ntroškovi]","v":{"v":0,"d":"0 kn"}},null,"Dobrotvorna udruga 2",null,null,{"$f":"Darovi[Predviđeni\ntroškovi]-Darovi[Stvarni\ntroškovi]","v":{"v":0,"d":"0 kn"}}]
[null,"Ostalo",null,null,{"$f":"Štednja[Predviđeni\ntroškovi]-Štednja[Stvarni\ntroškovi]","v":{"v":0,"d":"0 kn"}},null,"Dobrotvorna udruga 3",null,null,{"$f":"Darovi[Predviđeni\ntroškovi]-Darovi[Stvarni\ntroškovi]","v":{"v":0,"d":"0 kn"}}]
[null,"Ukupno",{"$f":"SUBTOTAL(109,Štednja[Predviđeni\ntroškovi])","v":{"v":0,"d":"0 kn"}},{"$f":"SUBTOTAL(109,Štednja[Stvarni\ntroškovi])","v":{"v":0,"d":"0 kn"}},{"$f":"SUBTOTAL(109,Štednja[Razlika])","v":{"v":0,"d":"0 kn"}},null,"Ukupno",{"$f":"SUBTOTAL(109,Darovi[Predviđeni\ntroškovi])","v":{"v":0,"d":"0 kn"}},{"$f":"SUBTOTAL(109,Darovi[Stvarni\ntroškovi])","v":{"v":0,"d":"0 kn"}},{"$f":"SUBTOTAL(109,Darovi[Razlika])","v":{"v":0,"d":"0 kn"}}]